bitfinex-derivatives/quotes_BNBF0:USTF0_20250413
["timestamp","ask_amount","ask_price","bid_price","bid_amount"]
[1744563666626,0.31118838,585.77,585.15,2.504]
[1744563666828,0.29736092,585.77,585.15,2.504]
[1744563667129,0.31118838,585.76,585.15,2.504]
[1744563668630,0.261,585.75,585.15,2.504]
[1744563668831,0.31118838,585.74,585.15,2.504]
[1744563669728,0.29737871,585.73,585.15,2.504]
[1744563670029,0.31118838,585.72,585.15,2.504]
[1744563672734,0.29738379,585.71,585.15,2.504]
[1744563672935,0.31118838,585.7,585.15,2.504]
[1744563674531,0.29738379,585.71,585.15,2.504]
[1744563674735,0.31109384,585.7,585.15,2.504]
[1744563675435,0.29738379,585.71,585.15,2.504]
[1744563675636,0.31109482,585.7,585.15,2.504]
[1744563675831,0.31109482,585.74,585.15,2.504]
[1744563676935,0.29737871,585.73,585.15,2.504]
[1744563677135,0.31109485,585.72,585.15,2.504]
[1744563677830,0.31109818,585.71,585.15,2.504]
[1744563678034,0.29737871,585.73,585.15,2.504]
[1744563678035,0.31109818,585.72,585.15,2.504]
[1744563678231,0.31109818,585.71,585.15,2.504]
[1744563678437,0.31109818,585.72,585.15,2.504]
[1744563678635,0.31109818,585.71,585.15,2.504]
[1744563678835,0.6085023,585.7,585.15,2.504]
[1744563679036,0.31109818,585.69,585.15,2.504]
[1744563681038,0.31109944,585.68,585.15,2.504]
[1744563681337,0.31109944,585.67,585.15,2.504]
[1744563681536,0.31109944,585.69,585.15,2.504]
[1744563681737,0.31109944,585.68,585.15,2.504]
[1744563681937,0.31109944,585.74,585.15,2.504]
[1744563682233,0.31109944,585.73,585.15,2.504]
[1744563682538,0.31109944,585.72,585.15,2.504]
[1744563682731,0.31109944,585.71,585.15,2.504]
[1744563682936,0.29738125,585.72,585.15,2.504]
[1744563683135,0.31109944,585.71,585.15,2.504]
[1744563684839,0.31109944,585.89,585.15,2.504]
[1744563685039,0.65246627,585.88,585.15,2.504]
[1744563685239,0.65247209,585.87,585.15,2.504]
[1744563685440,0.65247792,585.86,585.15,2.504]
[1744563685739,1.30641341,585.9,585.15,2.504]
[1744563685740,1.30641341,585.81,585.15,2.504]
[1744563685934,0.31108366,585.8,585.15,2.504]
[1744563686141,0.57208366,585.8,585.15,2.504]
[1744563686437,0.31108366,585.79,585.15,2.504]
[1744563687345,0.261,585.8,585.15,2.504]
[1744563687642,0.31106793,585.79,585.15,2.504]
[1744563690744,0.29739396,585.78,585.15,2.504]
[1744563690944,0.31106793,585.77,585.15,2.504]
[1744563691146,1.30641341,585.74,585.15,2.504]
[1744563691342,0.31106793,585.73,585.15,2.504]
[1744563692150,1.30641341,585.74,585.15,2.504]
[1744563692349,0.31105901,585.73,585.15,2.504]
[1744563692648,1.30641341,585.74,585.15,2.504]
[1744563692850,0.31106002,585.73,585.15,2.504]
[1744563693350,1.30641341,585.72,585.15,2.504]
[1744563693544,0.31106002,585.71,585.15,2.504]
[1744563693751,0.60846541,585.71,585.15,2.504]
[1744563693945,0.31106188,585.7,585.15,2.504]
[1744563696750,0.31106188,585.79,585.15,2.504]
[1744563696946,0.31106188,585.78,585.15,2.504]
[1744563697145,0.29738887,585.69,585.15,2.504]
[1744563697348,0.31109538,585.68,585.15,2.504]
[1744563697650,0.31109538,585.67,585.15,2.504]
[1744563697950,0.31109538,585.66,585.15,2.504]
[1744563698150,0.29738887,585.66,585.15,2.504]
[1744563698353,0.31109538,585.65,585.15,2.504]
[1744563699649,0.31109538,585.64,585.15,2.504]
[1744563699846,0.29738887,585.64,585.15,2.504]
[1744563700052,0.31109538,585.63,585.15,2.504]
[1744563700254,0.29738887,585.64,585.15,2.504]
[1744563700553,0.31108805,585.63,585.15,2.504]
[1744563701850,0.29738887,585.64,585.15,2.504]
[1744563702151,0.31108234,585.63,585.15,2.504]
[1744563702955,0.31108234,585.62,585.15,2.504]
[1744563703151,0.31108234,585.84,585.15,2.504]
[1744563703355,0.31108234,585.83,585.15,2.504]
[1744563703556,0.31108512,585.82,585.15,2.504]
[1744563703758,1.30641341,585.74,585.15,2.504]
[1744563703958,0.31108512,585.73,585.15,2.504]
[1744563705054,1.30641341,585.74,585.15,2.504]
[1744563705260,0.31108832,585.73,585.15,2.504]
[1744563705759,0.29740285,585.72,585.15,2.504]
[1744563706057,0.31108832,585.71,585.15,2.504]
[1744563706658,1.30641341,585.7,585.15,2.504]
[1744563706858,0.31109017,585.69,585.15,2.504]
[1744563708959,1.30641341,585.68,585.15,2.504]
[1744563709253,0.31109017,585.67,585.15,2.504]
[1744563709857,0.29741048,585.66,585.15,2.504]
[1744563710258,0.31104163,585.65,585.15,2.504]
[1744563711461,1.30641341,585.74,585.15,2.504]
[1744563711754,0.2974181,585.64,585.15,2.504]
[1744563711958,0.31104387,585.63,585.15,2.504]
[1744563712160,0.31104387,585.73,585.15,2.504]
[1744563712858,0.29740794,585.72,585.15,2.504]
[1744563713059,0.31104387,585.71,585.15,2.504]
[1744563714760,0.31104387,585.82,585.15,2.504]
[1744563714960,0.29741048,585.7,585.15,2.504]
[1744563715159,0.31104387,585.69,585.15,2.504]
[1744563715361,0.31104387,585.68,585.15,2.504]
[1744563715557,0.31104387,585.82,585.15,2.504]
[1744563715757,0.31104387,585.81,585.15,2.504]
[1744563715959,0.29739396,585.81,585.15,2.504]
[1744563716159,0.65245732,585.8,585.15,2.504]
[1744563716461,0.65246314,585.79,585.15,2.504]
[1744563716658,0.65246897,585.78,585.15,2.504]
[1744563716962,0.6524748,585.77,585.15,2.504]
[1744563717162,0.65248063,585.76,585.15,2.504]
[1744563717459,0.31104387,585.75,585.15,2.504]
[1744563717661,0.31104387,585.74,585.15,2.504]
[1744563717857,0.60847468,585.75,585.15,2.504]
[1744563718164,1.30641341,585.71,585.15,2.504]
[1744563718362,0.31104387,585.7,585.15,2.504]
[1744563720766,0.31104387,585.71,585.15,2.504]
[1744563721165,0.31104387,585.7,585.15,2.504]
[1744563721462,0.31104387,585.69,585.15,2.504]
[1744563721666,0.31104387,585.68,585.15,2.504]
[1744563721866,0.31104387,585.67,585.15,2.504]
[1744563722065,1.30641341,585.72,585.15,2.504]
[1744563722066,0.31104387,585.66,585.15,2.504]
[1744563722261,0.31104387,585.71,585.15,2.504]
[1744563722566,0.31104387,585.7,585.15,2.504]
[1744563722766,0.31104387,585.69,585.15,2.504]
[1744563723067,0.31104387,585.68,585.15,2.504]
[1744563723364,1.30641341,585.64,585.15,2.504]
[1744563723562,0.31104387,585.63,585.15,2.504]
[1744563723969,0.29745115,585.62,585.15,2.504]
[1744563724271,0.31104387,585.61,585.15,2.504]
[1744563725571,0.261,585.6,585.15,2.504]
[1744563725766,0.31104387,585.59,585.15,2.504]
[1744563726871,0.29746386,585.58,585.15,2.504]
[1744563727170,0.31104387,585.57,585.15,2.504]
[1744563727370,0.31104387,585.57,585.15,1.929]
[1744563727571,0.31104387,585.57,585.15,0.397]
[1744563729672,0.31104387,585.59,585.15,0.397]
[1744563729870,0.29760632,585.56,585.15,0.397]
[1744563730068,0.31104387,585.55,585.15,0.397]
[1744563730273,0.31104387,585.55,584.21,0.29760632]
[1744563730572,0.31104387,585.55,584.22,0.65666642]
[1744563730770,0.31104387,585.55,584.23,0.65666056]
[1744563730970,0.31104387,585.55,584.24,0.6566547]
[1744563731167,0.31104387,585.55,584.25,0.31432963]
[1744563731370,0.31104387,585.55,584.25,1.46332963]
[1744563731574,0.31104387,585.55,584.26,0.65664298]
[1744563731774,0.31104387,585.55,584.27,0.31432963]
[1744563732073,0.31104387,585.55,584.27,0.65663712]
[1744563732369,0.31104387,585.55,584.28,0.31432963]
[1744563732578,0.31104387,585.55,584.29,0.34229577]
[1744563732778,0.29760632,585.54,584.3,0.31432963]
[1744563733077,0.31104387,585.53,584.3,0.31432963]
[1744563733273,0.31104387,585.53,584.29,0.34229577]
[1744563733479,0.31088341,585.52,584.3,0.31432829]
[1744563733778,0.31088341,585.51,584.31,0.34228406]
[1744563733974,0.31088341,585.53,584.32,0.31432829]
[1744563734181,0.31088341,585.52,584.33,0.34227234]
[1744563734379,0.31088341,585.53,584.33,0.34227234]
[1744563734573,0.31088341,585.52,584.33,0.34227234]
[1744563734778,0.31088341,585.53,584.33,0.34227234]
[1744563734978,0.29760632,585.54,584.33,0.34227234]
[1744563735181,0.31093426,585.53,584.33,0.34227234]
[1744563735882,0.31093426,585.57,584.33,0.34227234]
[1744563736976,0.29760378,585.56,584.33,0.34227234]
[1744563737481,0.3109288,585.55,584.34,0.31433362]
[1744563737776,0.3109288,585.54,584.34,0.31433362]
[1744563737981,0.3109288,585.53,584.34,0.31433362]
[1744563738180,0.3109288,585.52,584.34,0.31433362]
[1744563738382,0.3109288,585.51,584.34,0.31433362]
[1744563738680,0.3109288,585.5,584.34,0.31433362]
[1744563738881,0.3109288,585.57,584.34,0.31433362]
[1744563739180,0.3109288,585.56,584.34,0.31433362]
[1744563739382,0.3109288,585.55,584.34,0.31433362]
[1744563739582,0.3109288,585.54,584.34,0.31433362]
[1744563739781,0.3109288,585.53,584.34,0.31433362]
[1744563739982,0.261,585.53,584.33,0.34227234]
[1744563740282,0.31092228,585.52,584.34,0.31433091]
[1744563740480,0.31092228,585.51,584.34,0.31433091]
[1744563740681,0.31092228,585.5,584.34,0.31433091]
[1744563740879,0.31092228,585.49,584.34,0.31433091]
[1744563741078,0.31092228,585.52,584.34,0.31433091]
[1744563741277,0.31092228,585.51,584.34,0.31433091]
[1744563741476,0.31092228,585.5,584.34,0.31433091]
[1744563741680,0.31092611,585.49,584.35,0.31433404]
[1744563741881,0.31092611,585.52,584.34,0.31433404]
[1744563742080,0.31092611,585.51,584.35,0.31433404]
[1744563742281,0.31092611,585.5,584.34,0.31433404]
[1744563742480,0.31092611,585.49,584.35,0.31433404]
[1744563742677,0.31092611,585.48,584.34,0.31433404]
[1744563742881,0.29759996,585.49,584.34,0.31433404]
[1744563743082,0.31092611,585.48,584.34,0.31433404]
[1744563744781,0.29759996,585.49,584.33,0.34227234]
[1744563744984,0.31093142,585.48,584.34,0.31433137]
[1744563746486,0.29759996,585.49,584.33,0.34227234]
[1744563746687,0.31093456,585.48,584.34,0.31433087]
[1744563747687,0.31093456,585.47,584.34,0.31433087]
[1744563747888,0.29761014,585.47,584.34,0.31433087]
[1744563748089,0.31093456,585.46,584.34,0.31433087]
[1744563748285,0.31093456,585.46,584.35,0.448]
[1744563748488,0.31093456,585.46,584.36,0.31433087]
[1744563749786,0.31093506,585.45,584.37,0.31432942]
[1744563749989,0.31093506,585.46,584.36,0.31432942]
[1744563750186,0.31093506,585.45,584.35,0.448]
[1744563750388,0.31093506,585.46,584.36,0.31433108]
[1744563750592,0.31093506,585.45,584.36,0.31433108]
[1744563750791,0.31093506,585.46,584.36,0.31433108]
[1744563750991,0.31093506,585.45,584.36,0.31433108]
[1744563751186,0.31093506,585.52,584.36,0.31433108]
[1744563751391,0.31093506,585.51,584.36,0.31433108]
[1744563751591,0.31093506,585.5,584.36,0.31433108]
[1744563751790,0.31093506,585.52,584.36,0.31433108]
[1744563752087,0.29759741,585.5,584.36,0.31433108]
[1744563752286,0.31093506,585.49,584.36,0.31433108]
[1744563753393,0.31093506,585.49,584.35,0.448]
[1744563753695,0.261,585.53,584.35,0.448]
[1744563753993,0.31099345,585.52,584.36,0.34225477]
[1744563754891,0.31099345,585.52,584.37,0.67]
[1744563755492,0.31099345,585.52,584.38,0.34224306]
[1744563756295,0.29754907,585.54,584.38,0.34224306]
[1744563756496,0.31098365,585.53,584.38,0.34224306]
[1744563756895,0.31098365,585.56,584.38,0.34224306]
[1744563757898,0.31098365,585.56,584.39,0.31426223]
[1744563758099,0.29754652,585.55,584.4,0.34223134]
[1744563758398,0.31098365,585.54,584.41,0.31426223]
[1744563758798,0.31098365,585.54,584.42,0.34221963]
[1744563758994,0.261,585.53,584.43,0.31426223]
[1744563759192,0.31098365,585.52,584.44,0.34220792]
[1744563759394,0.31098365,585.52,584.45,0.31426223]
[1744563759695,0.31098365,585.52,584.46,0.34219621]
[1744563759893,0.31098365,585.52,584.47,0.31426223]
[1744563760095,0.31098365,585.52,584.48,0.3421845]
[1744563760298,0.31098365,585.52,584.49,0.31426223]
[1744563760594,0.31098365,585.52,584.5,0.34217279]
[1744563762900,0.31097718,585.51,584.5,0.34217279]
[1744563763100,0.31097718,585.52,584.5,0.34217279]
[1744563763300,0.31097718,585.51,584.5,0.34217279]
[1744563763499,0.31097718,585.52,584.5,0.34217279]
[1744563763698,0.31097718,585.51,584.5,0.34217279]
[1744563763895,0.31097718,585.5,584.5,0.34217279]
[1744563764096,0.31097718,585.52,584.5,0.34217279]
[1744563764299,0.31097718,585.51,584.5,0.34217279]
[1744563764496,0.31097718,585.52,584.5,0.34217279]
[1744563766201,0.31098583,585.51,584.5,0.34217279]
[1744563766402,0.31098583,585.5,584.5,0.34217279]
[1744563766597,0.31098583,585.52,584.5,0.34217279]
[1744563766797,0.31098583,585.51,584.5,0.34217279]
[1744563767000,0.31098583,585.52,584.5,0.34217279]
[1744563767299,0.31098583,585.51,584.5,0.34217279]
[1744563767503,0.31098583,585.52,584.5,0.34217279]
[1744563767805,0.31100382,585.51,584.5,0.34217279]
[1744563768002,0.31100382,585.52,584.5,0.34217279]
[1744563768203,0.31100382,585.51,584.5,0.34217279]
[1744563768402,0.31100382,585.52,584.5,0.34217279]
[1744563768603,0.31100382,585.51,584.5,0.34217279]
[1744563768902,0.31100382,585.5,584.51,0.53]
[1744563769206,0.31100382,585.49,584.52,0.34216108]
[1744563769407,0.31100382,585.52,584.52,0.34216108]
[1744563776417,0.31100382,585.52,584.52,0.95916108]
[1744563776816,0.31100382,585.52,584.53,0.31422657]
[1744563777017,0.31100382,585.52,584.54,0.34214938]
[1744563777318,0.31100382,585.52,584.55,0.31422657]
[1744563777614,0.261,585.53,584.56,0.34213767]
[1744563777819,0.31102469,585.52,584.57,0.31422208]
[1744563778012,0.31102469,585.52,584.58,0.34212597]
[1744563780314,0.31102469,585.52,584.59,0.31421736]
[1744563780518,0.31102469,585.52,584.6,0.34211426]
[1744563780817,0.261,585.53,584.6,0.34211426]
[1744563781018,0.31101346,585.52,584.6,0.34211426]
[1744563781518,0.31101346,585.52,584.61,0.31419969]
[1744563781819,0.31101346,585.52,584.62,0.34210256]
[1744563782013,0.261,585.53,584.62,0.34210256]
[1744563782318,0.31103442,585.52,584.63,0.31418881]
[1744563785219,0.31103442,585.52,584.62,0.34210256]
[1744563786916,0.261,585.53,584.62,0.34210256]
[1744563787118,0.31094881,585.52,584.62,0.34210256]
[1744563787820,0.31094881,585.52,584.63,0.31419361]
[1744563788421,0.31094881,585.52,584.62,0.34210256]
[1744563788717,0.31094881,585.52,584.63,0.3141952]
[1744563789213,0.31094881,585.51,584.63,0.3141952]
[1744563789417,0.31094881,585.56,584.63,0.3141952]
[1744563789615,0.31094881,585.55,584.63,0.3141952]
[1744563789815,0.31094881,585.54,584.64,0.69]
[1744563790015,0.31094881,585.56,584.64,0.69]
[1744563790216,0.31094881,585.55,584.64,0.69]
[1744563790421,0.31094881,585.56,584.64,0.69]
[1744563790721,0.31094881,585.55,584.64,0.69]
[1744563790922,0.31094881,585.56,584.64,0.69]
[1744563791122,0.31094881,585.55,584.64,0.69]
[1744563791318,0.31094881,585.54,584.64,0.69]
[1744563791524,0.31094881,585.56,584.64,0.69]
[1744563791718,0.31094881,585.55,584.64,0.69]
[1744563792024,0.31094881,585.54,584.64,0.69]
[1744563794929,0.261,585.55,584.64,0.69]
[1744563795124,0.31086287,585.54,584.64,0.69]
[1744563795429,0.31086287,585.54,584.65,0.56]
[1744563796530,0.261,585.55,584.65,0.56]
[1744563796731,0.31086542,585.54,584.65,0.56]
[1744563797034,0.60838523,585.54,584.65,0.56]
[1744563797330,0.31086542,585.53,584.65,0.56]
[1744563799632,0.29751981,585.54,584.65,0.56]
[1744563799833,0.31085822,585.53,584.65,0.56]
[1744563801234,0.29751981,585.54,584.65,0.56]
[1744563801434,0.31086179,585.53,584.65,0.56]
[1744563801933,0.60839051,585.52,584.65,0.56]
[1744563802133,0.31086179,585.51,584.65,0.56]
[1744563802833,0.29752872,585.52,584.65,0.56]
[1744563803033,0.31085389,585.51,584.65,0.56]
[1744563804435,0.29752872,585.52,584.65,0.56]
[1744563804636,0.31085239,585.51,584.65,0.56]
[1744563804835,0.31085239,585.54,584.65,0.56]
[1744563805036,0.29752744,585.51,584.65,0.56]
[1744563805237,0.31085239,585.5,584.65,0.56]
[1744563807239,0.31085239,585.5,584.65,1.038]
[1744563807941,0.60838619,585.49,584.65,1.038]
[1744563808142,0.31085239,585.48,584.65,1.038]
[1744563809240,0.2975338,585.49,584.65,1.038]
[1744563809440,0.31086317,585.48,584.65,1.038]
[1744563810842,0.31086317,585.54,584.65,1.038]
[1744563812043,0.29752617,585.53,584.65,1.038]
[1744563812243,0.31086317,585.52,584.65,1.038]
[1744563814045,0.60837766,585.51,584.65,1.038]
[1744563814245,0.3108464,585.5,584.65,1.038]
[1744563815245,0.29753126,585.51,584.65,1.038]
[1744563815646,0.31088264,585.5,584.65,1.038]
[1744563815947,0.31088264,585.5,584.65,1.737]
[1744563816841,0.31088264,585.56,584.65,1.737]
[1744563817041,0.34154755,585.57,584.65,1.737]
[1744563817242,0.31087099,585.56,584.65,1.737]
[1744563817945,0.297516,585.55,584.65,1.737]
[1744563818142,0.31087099,585.54,584.65,1.737]
[1744563818341,0.57187099,585.54,584.65,1.737]
[1744563818543,0.261,585.54,584.65,1.737]
[1744563818744,0.31087618,585.53,584.65,1.737]
[1744563820050,0.297516,585.52,584.65,1.737]
[1744563820246,0.31087132,585.51,584.65,1.737]
[1744563824046,0.31087132,585.53,584.65,1.737]
[1744563824252,0.31087132,585.52,584.65,1.737]
[1744563824551,0.31087132,585.51,584.65,1.737]
[1744563824847,0.31087132,585.5,584.65,1.737]
[1744563825052,0.31091117,585.49,584.65,1.737]
[1744563825246,0.31091117,585.53,584.65,1.737]
[1744563825445,0.31091117,585.52,584.65,1.737]
[1744563825648,0.31091117,585.51,584.65,1.737]
[1744563825852,0.31091117,585.53,584.65,1.737]
[1744563826049,0.31091117,585.52,584.65,1.737]
[1744563826250,0.31091117,585.53,584.65,1.737]
[1744563826550,0.31091117,585.52,584.65,1.737]
[1744563826752,0.31091117,585.53,584.65,1.737]
[1744563826951,0.31091117,585.52,584.65,1.737]
[1744563827147,0.31091117,585.51,584.65,1.737]
[1744563827351,0.31091117,585.53,584.65,1.737]
[1744563827546,0.31091117,585.52,584.65,1.737]
[1744563827749,0.31091117,585.53,584.65,1.737]
[1744563827949,0.31091117,585.52,584.65,1.737]
[1744563828150,0.261,585.54,584.65,1.737]
[1744563828949,0.261,585.54,584.66,0.34207915]
[1744563831760,0.261,585.54,584.66,1.05807915]
[1744563833057,0.261,585.54,584.66,1.56107915]
[1744563835458,0.29736473,585.69,584.66,1.56107915]
[1744563836459,0.29736473,585.69,584.66,2.22507915]
[1744563837661,1.30641341,586.64,584.66,2.22507915]
[1744563837854,0.31099676,586.63,584.66,2.22507915]
[1744563838058,0.29732027,585.75,584.66,2.22507915]
[1744563838257,1.30641341,586.59,584.66,2.22507915]
[1744563838455,0.31100066,586.58,584.67,0.3141405]
[1744563838758,0.34097108,586.56,584.68,0.34206745]
[1744563838958,0.31100066,586.55,584.69,0.3141405]
[1744563839156,0.34098852,586.53,584.7,0.34205575]
[1744563839360,0.31100066,586.52,584.71,0.3141405]
[1744563839556,0.34100596,586.5,584.72,0.34204405]
[1744563839760,0.31100066,586.49,584.73,0.3141405]
[1744563839962,0.34102341,586.47,584.73,0.6561787]
[1744563840158,0.31100066,586.46,584.73,0.3420382]
[1744563840364,0.34104085,586.44,584.73,0.3420382]
[1744563840558,0.31100066,586.43,584.74,0.31413911]
[1744563840759,0.34104085,586.44,584.73,0.3420382]
[1744563840961,0.31105296,586.43,584.73,0.3420382]
[1744563841263,0.3410583,586.41,584.73,0.3420382]
[1744563841565,1.30641341,586.0,584.73,0.3420382]
[1744563841763,0.31105296,585.99,584.73,0.3420382]
[1744563843571,1.30641341,586.0,584.73,0.3420382]
[1744563843769,0.31097872,585.99,584.73,0.3420382]
[1744563844570,0.31097872,586.4,584.73,0.3420382]
[1744563844869,0.34107575,586.38,584.73,0.3420382]
[1744563845069,0.31097872,586.37,584.73,0.3420382]
[1744563845270,0.3410932,586.35,584.73,0.3420382]
[1744563845472,0.31099852,586.34,584.74,0.3140727]
[1744563845671,0.34111065,586.32,584.75,0.3420265]
[1744563845971,0.31099852,586.31,584.75,0.3420265]
[1744563846166,0.65212081,586.3,584.75,0.3420265]
[1744563846367,0.31099852,586.29,584.75,0.3420265]
[1744563846567,0.34113392,586.28,584.75,0.3420265]
[1744563846968,0.31101786,586.27,584.75,0.3420265]
[1744563847165,0.65216342,586.26,584.76,0.31407229]
[1744563847365,0.65216924,586.25,584.77,0.3420148]
[1744563847566,1.30641341,586.48,584.77,0.3420148]
[1744563847567,0.65217506,586.24,584.78,0.31407229]
[1744563847769,0.65218088,586.23,584.79,0.34200311]
[1744563847966,0.6521867,586.22,584.8,0.31407229]
[1744563848271,0.65219252,586.21,584.81,0.34199141]
[1744563848466,0.34118048,586.2,584.81,0.34199141]
[1744563848666,0.31101786,586.19,584.82,0.31407229]
[1744563848869,0.31101786,586.18,584.82,0.31407229]
[1744563849072,0.31101786,586.17,584.82,0.31407229]
[1744563849368,0.65222162,586.16,584.83,0.34197972]
[1744563849572,0.29731646,586.24,584.83,0.34197972]
[1744563849573,0.65222744,586.15,584.84,0.31407229]
[1744563849768,0.31101786,586.14,584.85,0.34196802]
[1744563849968,0.34122123,586.13,584.85,0.34196802]
[1744563850168,0.31101786,586.12,584.85,0.34196802]
[1744563851172,0.31101786,586.12,584.86,0.621]
[1744563851773,0.31101786,586.12,584.87,0.34195633]
[1744563853871,0.2973063,586.11,584.87,0.34195633]
[1744563854075,0.31101786,586.1,584.87,0.34195633]
[1744563855874,0.29730884,586.09,584.87,0.34195633]
[1744563856072,0.31101786,586.08,584.87,0.34195633]
[1744563856475,0.31101786,586.08,584.88,0.511]
[1744563856676,0.31101786,586.08,584.89,0.34194463]
[1744563858977,0.34122123,586.13,584.89,0.34194463]
[1744563859180,0.29730884,586.07,584.89,0.34194463]
[1744563859478,0.3110022,586.06,584.89,0.34194463]
[1744563862078,0.3110022,586.12,584.89,0.34194463]
[1744563862779,0.34122123,586.13,584.89,0.34194463]
[1744563862979,0.29730376,586.11,584.89,0.34194463]
[1744563863281,0.31100367,586.1,584.89,0.34194463]
[1744563864381,0.29730376,586.11,584.89,0.34194463]
[1744563864681,1.30641341,586.32,584.89,0.34194463]
[1744563864682,0.65227756,586.1,584.89,0.34194463]
[1744563864880,0.31103887,586.09,584.89,0.34194463]
[1744563865979,0.29733297,586.08,584.89,0.34194463]
[1744563866282,0.31103887,586.07,584.89,0.34194463]
[1744563866976,0.34126198,586.06,584.89,0.34194463]
[1744563867183,0.31103887,586.05,584.89,0.34194463]
[1744563867377,0.34127363,586.04,584.89,0.34194463]
[1744563867679,0.31103887,586.03,584.89,0.34194463]
[1744563867883,0.34128528,586.02,584.89,0.34194463]
[1744563868084,0.31103887,586.01,584.89,0.34194463]
[1744563868287,0.65232997,586.01,584.89,0.34194463]
[1744563868485,0.57203887,586.0,584.9,0.631]
[1744563868685,0.31103887,585.99,584.9,0.631]
[1744563868888,0.60839852,585.99,584.9,0.631]
[1744563869087,0.29735965,585.99,584.9,0.631]
[1744563869281,0.31104258,585.98,584.9,0.631]
[1744563869587,0.31104258,585.98,584.9,1.137]
[1744563870085,0.31104258,585.98,584.9,1.47893879]
[1744563870783,0.31106009,585.97,584.9,1.47893879]
[1744563871084,0.31106009,585.96,584.9,1.47893879]
[1744563871287,0.31106009,585.98,584.9,1.47893879]
[1744563873890,0.31106009,585.99,584.9,1.47893879]
[1744563874189,0.29732916,585.97,584.9,1.47893879]
[1744563874388,0.31106009,585.96,584.9,1.47893879]
[1744563875389,0.29732916,585.97,584.9,1.47893879]
[1744563875590,0.31099117,585.96,584.9,1.47893879]
[1744563876486,0.31099117,585.96,584.9,1.91793879]
[1744563878695,0.29732916,585.97,584.9,1.91793879]
[1744563878696,0.31102329,585.95,584.9,1.91793879]
[1744563878996,0.31102329,585.96,584.9,1.91793879]
[1744563879296,0.31102329,585.95,584.9,1.91793879]
[1744563879600,0.31102329,585.94,584.9,1.91793879]
[1744563879797,0.31102329,585.93,584.9,1.91793879]
[1744563879991,0.31102329,585.99,584.9,1.91793879]
[1744563880197,0.29733933,585.93,584.9,1.91793879]
[1744563880395,0.31102329,585.92,584.9,1.91793879]
[1744563882600,0.31102329,585.92,584.91,0.34193294]
[1744563883002,0.31102329,585.98,584.91,0.34193294]
[1744563883196,0.31102329,585.97,584.91,0.34193294]
[1744563883399,0.311043,585.96,584.91,0.34193294]
[1744563883597,0.311043,585.95,584.91,0.34193294]
[1744563883897,0.261,586.0,584.91,0.34193294]
[1744563883898,0.311043,585.94,584.91,0.34193294]
[1744563884102,0.29731392,585.98,584.91,0.34193294]
[1744563884304,0.311043,585.97,584.91,0.34193294]
[1744563884904,0.29731392,585.98,584.91,0.34193294]
[1744563885097,0.31104474,585.97,584.91,0.34193294]
[1744563885797,0.31104474,585.99,584.91,0.34193294]
[1744563885998,0.60835993,585.98,584.91,0.34193294]
[1744563886198,0.31104474,585.97,584.91,0.34193294]
[1744563886500,0.29731519,585.98,584.91,0.34193294]
[1744563886703,0.3110426,585.97,584.91,0.34193294]
[1744563888307,0.3110426,585.97,584.91,0.98793294]
[1744563889006,0.3110426,585.96,584.91,0.98793294]
[1744563889202,0.29731392,585.98,584.91,0.98793294]
[1744563889406,0.3110426,585.97,584.91,0.98793294]
[1744563892005,0.3110426,585.96,584.91,0.98793294]
[1744563892209,0.3110426,585.97,584.91,0.98793294]
[1744563894412,0.29731392,585.98,584.91,0.98793294]
[1744563894607,0.31102773,585.97,584.91,0.98793294]
[1744563894812,0.57202773,585.97,584.91,0.98793294]
[1744563895011,0.31102773,585.96,584.91,0.98793294]
[1744563897713,0.261,585.97,584.91,0.98793294]
[1744563897913,0.31102112,585.96,584.91,0.98793294]
[1744563900411,0.31102112,585.96,584.91,1.55793294]
[1744563900810,0.261,585.97,584.91,1.55793294]
[1744563901015,0.31101965,585.96,584.91,1.55793294]
[1744563905622,0.31101965,585.96,584.91,2.09393294]
[1744563908426,0.55831646,585.97,584.91,2.09393294]
[1744563908722,0.31098243,585.96,584.91,2.09393294]
[1744563909919,0.31098243,586.0,584.91,2.09393294]
[1744563910928,0.31098243,585.99,584.91,2.09393294]
[1744563911127,0.31098243,585.98,584.91,2.09393294]
[1744563911628,0.31098243,585.98,584.92,0.31398359]
[1744563911828,0.31098243,585.98,584.93,0.34192125]
[1744563914732,0.261,585.99,584.93,0.34192125]
[1744563914926,0.31101155,585.98,584.94,0.31397326]